[Event "Biel Festival Masters Blitz 2024"]
[White "Mishra,Abhimanyu"]
[Black "Le,Quang Liem"]
[Site "Biel"]
[Round "8.1"]
[Annotator "TA"]
[Result "0-1"]
[Date "2024.07.21"]
[WhiteElo "2627"]
[BlackElo "2731"]
[PlyCount "86"]
[TimeControl "180+2"]

{[%evp 21,86,12,17,9,4,5,15,16,8,12,13,11,19,25,18,0,0,0,0,0,0,0,0,0,0,0,0,0,0,0,0,0,0,0,0,0,0,0,0,0,0,0,0,0,0,0,3,0,114,0,0,-82,-80,-221,-158,-354,-98,-479,-483,-780,-710,-824,-720,-809,-793,-7416,-6053]} 1. d4 {[%emt 0:0:1]} Nf6 {[%emt 0:0:1]} 2. c4 {[%emt 0:0:1]} e6 {[%emt 0:0:1]} 3. Nf3 {[%emt 0:0:0]} d5 {[%emt 0:0:1]} 4. g3 {[%emt 0:0:1]} Be7 {[%emt 0:0:1]} 5. Bg2 {[%emt 0:0:1]} O-O {[%emt 0:0:2]} 6. O-O {[%emt 0:0:2]} dxc4 {[%emt 0:0:1]} 7. Qc2 {[%emt 0:0:0]} a6 {[%emt 0:0:2]} 8. a4 {[%emt 0:0:1]} Bd7 {[%emt 0:0:1]} 9. Qxc4 {[%emt 0:0:2]} Bc6 {[%emt 0:0:0]} 10. Bg5 {[%emt 0:0:1]} Nbd7 {[%emt 0:0:2]} 11. Nc3 {[%emt 0:0:1]} h6 {[%emt 0:0:1]} 12. Bxf6 {[%emt 0:0:3]} Nxf6 {[%emt 0:0:2]} 13. Rfd1 {[%emt 0:0:8]} a5 {[%emt 0:0:8]} 14. Ne5 {[%emt 0:0:13] Die Stellung ist ausgeglichen.} Bxg2 {[%emt 0:0:2]} 15. Kxg2 {[%emt 0:0:1]} c6 {[%emt 0:0:6]} 16. e3 {[%emt 0:0:2]} Bd6 {[%emt 0:0:13]} 17. Qe2 {[%emt 0:0:3]} Qe7 {[%emt 0:0:10]} 18. Nd3 {[%emt 0:0:13]} Rfd8 {[%emt 0:0:5]} 19. Qf3 {[%emt 0:0:14]} e5 {[%emt 0:0:9]} 20. dxe5 {[%emt 0:0:2]} Bxe5 {[%emt 0:0:0]} 21. Nxe5 {[%emt 0:0:2]} Qxe5 {[%emt 0:0:2]} 22. Rxd8+ {[%emt 0:0:6]} Rxd8 {[%emt 0:0:1]} 23. Rd1 {[%emt 0:0:1] Gegen Rd2 gerichtet.} Rd6 {[%emt 0:0:11]} 24. Rxd6 {[%emt 0:0:11]} Qxd6 $11 {[%emt 0:0:1][%mdl 4096] Endspiel. KQN-KQN} 25. Qf5 {[%emt 0:0:1]} Qb4 {[%emt 0:0:12]} 26. Qc8+ {[%emt 0:0:2]} Kh7 {[%emt 0:0:1][%cal Og7g6]} 27. Qf5+ {[%emt 0:0:1]} Kh8 {[%emt 0:0:6]} 28. Qc8+ {[%emt 0:0:36]} Ng8 {[%emt 0:0:2]} 29. Qd7 {[%emt 0:0:1]} Qxb2 {[%emt 0:0:24]} 30. Ne4 {[%emt 0:0:1][%cal Oe4d6]} Qe5 {[%emt 0:0:19]} (30... Qb4 $5 31. Nd6 $8 Nf6 32. Qc8+ Kh7 33. Qf5+ Kg8 34. Qc8+ Kh7 35. Qf5+ Kg8 36. Qc8+ Kh7 $11 )31. Nd6 {[%emt 0:0:3]} Kh7 {[%emt 0:0:1] [#] ...Nf6 ist eine echte Drohung.} 32. Nxb7 {[%emt 0:0:14]} ({Doch nicht} 32. Nxf7 Qe4+ 33. Kg1 Qb1+ 34. Kg2 Nf6 $17 )Qe4+ {[%emt 0:0:11]} 33. Kg1 {[%emt 0:0:2]} Qxa4 {[%emt 0:0:20]} 34. Qxf7 {[%emt 0:0:38]} Qd1+ {[%emt 0:0:3]} 35. Kg2 {[%emt 0:0:2] Und jetzt Qf5+ wäre schön.} a4 $1 {[%emt 0:0:1]} 36. Qf5+ {[%emt 0:0:21]} (36. Nc5 $1 $11 )Kh8 $17 {[%emt 0:0:3] [#] ...a3 wäre nun fies.} 37. Qf8 {[%emt 0:0:16]} (37. Na5 $17 )Qd5+ {[%emt 0:0:15]} 38. Kg1 $2 {[%emt 0:0:1]} (38. Qf3 $17 )Kh7 $2 {[%emt 0:0:2]} (38... Qb3 $19 {bietet bessere Gewinnchancen.} 39. Nd6 a3 )39. Nd6 {[%emt 0:0:15][%mdl 8192]} (39. Qb4 $17 Qb3 40. Qe4+ Kh8 41. Na5 )Nf6 $19 {[%emt 0:0:4] Schwarz steht klar auf Gewinn.} 40. e4 {[%emt 0:0:5]} (40. Nb7 $142 )Qc5 {[%emt 0:0:14] Weiss muss nun ...a3 beachten.} 41. e5 {[%emt 0:0:8]} Qxe5 {[%emt 0:0:2] Droht ...a3 und aus.} 42. Nf7 {[%emt 0:0:4]} Qe8 {[%emt 0:0:12]} 43. Qxe8 {[%emt 0:0:3]} Nxe8 {[%emt 0:0:1] Gewichteter Fehlerwert: Weiß=0.74/Schwarz=0.19 (sehr präzise) .  Verlustzug:     	Weiß=2     	---        Gewinn verpasst:   	---       	Schwarz=1     Fehler:       	Weiß=3     	---        Ungenau:       	Weiß=1     	---        OK:         	Weiß=13    	Schwarz=7     Bester:       	Weiß=1     	Schwarz=6     Stark:        	---       	Schwarz=1} 0-1

[Event "Biel Festival Masters Blitz 2024"]
[White "Keymer,Vincent"]
[Black "Shankland,Sam"]
[Site "Biel"]
[Round "8.2"]
[Annotator "TA"]
[Result "0-1"]
[Date "2024.07.21"]
[WhiteElo "2721"]
[BlackElo "2683"]
[PlyCount "84"]
[TimeControl "180+2"]

{[%evp 13,84,7,8,11,7,8,11,21,22,25,18,0,58,-113,-106,-103,-99,-94,-97,-71,-85,-88,-94,-94,-106,-107,-103,-119,-108,-107,-124,-130,-90,-89,-30,-117,-126,-112,-123,-117,-118,-138,-130,-143,-139,-200,-185,-179,-190,-182,-172,-167,-157,-247,-204,-195,0,-242,-130,-137,-149,-143,-142,-165,-136,-218,-222,-651,-256,-667,-662,-638,-622]} 1. Nf3 {[%emt 0:0:2]} Nf6 {[%emt 0:0:1]} 2. c4 {[%emt 0:0:1]} g6 {[%emt 0:0:1]} 3. Nc3 {[%emt 0:0:1]} Bg7 {[%emt 0:0:1]} 4. g3 {[%emt 0:0:4]} O-O {[%emt 0:0:9]} 5. Bg2 {[%emt 0:0:1]} c5 {[%emt 0:0:4]} 6. d4 {[%emt 0:0:1]} d5 {[%emt 0:0:1]} 7. dxc5 {[%emt 0:0:8]} Qa5 {[%emt 0:0:0]} 8. O-O {[%emt 0:0:6]} dxc4 {[%emt 0:0:2][%cal Ob8c6]} 9. Qd4 {[%emt 0:0:5]} Nc6 $1 {[%emt 0:0:1]} 10. Qxc4 {[%emt 0:0:1] The position is equal.} Be6 {[%emt 0:0:1]} 11. Qh4 {[%emt 0:0:1]} Qxc5 {[%emt 0:0:4]} 12. Bh6 {[%emt 0:0:2]} Rfd8 {[%emt 0:0:19]} ({Better is} 12... Qc4 $11 13. Qxc4 Bxc4 14. Bxg7 Kxg7 )13. Rfc1 $2 {[%emt 0:0:25]} (13. Ng5 $14 {keeps the upper hand.} )Bxh6 $1 $17 {[%emt 0:0:5]} 14. Qxh6 {[%emt 0:0:13][%cal Oc3e4] [#]} Qxf2+ $3 {[%emt 0:0:12][%mdl 512]} 15. Kxf2 {[%emt 0:0:1]} Ng4+ {[%emt 0:0:1]} 16. Ke1 {[%emt 0:0:11]} Nxh6 {[%emt 0:0:1] Black is more active.} 17. Ng5 {[%emt 0:0:2]} Bd7 {[%emt 0:0:10]} 18. Na4 {[%emt 0:0:2]} Be8 {[%emt 0:0:23]} 19. Nc5 {[%emt 0:0:3]} Rab8 {[%emt 0:0:1]} 20. b3 {[%emt 0:0:4][%cal Oc5b7]} b6 {[%emt 0:0:37]} 21. Na6 {[%emt 0:0:46]} Rbc8 {[%emt 0:0:1]} 22. Bh3 {[%emt 0:0:2]} Nf5 {[%emt 0:0:9]} 23. e4 {[%emt 0:0:4]} h6 {[%emt 0:0:24]} (23... Ncd4 $1 $17 {[%cal Rd4c2]} 24. Rxc8 Rxc8 )24. Nf3 {[%emt 0:0:6]} (24. exf5 $11 hxg5 25. fxg6 )Ncd4 $1 {[%emt 0:0:6]} 25. Nxd4 {[%emt 0:0:26]} Rxc1+ {[%emt 0:0:1]} 26. Rxc1 {[%emt 0:0:1]} Nxd4 {[%emt 0:0:1]} 27. Rc7 {[%emt 0:0:4]} Kf8 {[%emt 0:0:25]} 28. Nb4 {[%emt 0:0:10]} Nb5 {[%emt 0:0:7]} 29. Rb7 {[%emt 0:0:9]} (29. Rc4 $17 )e6 {[%emt 0:0:3]} 30. Bf1 {[%emt 0:0:4]} Nc3 $1 {[%emt 0:0:4]} 31. Rxa7 {[%emt 0:0:11]} Rd1+ {[%emt 0:0:1]} ({Resist} 31... Nxe4 32. Nd3 $17 )32. Kf2 {[%emt 0:0:1]} Nxe4+ {[%emt 0:0:1]} 33. Ke2 {[%emt 0:0:2]} (33. Kg2 $17 )Nc3+ {[%emt 0:0:1]} 34. Kf2 {[%emt 0:0:1]} Ne4+ {[%emt 0:0:8]} (34... h5 $142 35. Kg2 Rd2+ 36. Kg1 Bb5 )35. Ke2 $1 $19 {[%emt 0:0:1] [#]} Ra1 {[%emt 0:0:2]} (35... Rb1 $1 $19 36. Nc2 Nc3+ 37. Kd2 Nxa2 )36. Bg2 $17 {[%emt 0:0:3]} Bb5+ {[%emt 0:0:5]} 37. Ke3 {[%emt 0:0:7] [#]} Re1+ $1 {[%emt 0:0:3]} 38. Kd4 {[%emt 0:0:1]} Nc5 {[%emt 0:0:3] ...e5+ is the strong threat.} 39. Ra8+ {[%emt 0:0:8]} (39. Kc3 $17 {was called for.} )Kg7 $19 {[%emt 0:0:1] aiming for ...e5+.} 40. Rb8 $2 {[%emt 0:0:1]} (40. Bc6 e5+ 41. Kd5 Rd1+ 42. Kxe5 f6+ 43. Kf4 Rd4+ 44. Ke3 Rxb4 45. Ra7+ Kf8 46. Bd5 )Nd7 $2 {[%emt 0:0:6]} (40... e5+ 41. Kc3 Re3+ 42. Kb2 Re2+ 43. Kc1 Rxg2 )41. Rb7 $2 {[%emt 0:0:3]} (41. Rc8 )e5+ {[%emt 0:0:7]} 42. Kd5 {[%emt 0:0:12]} Rd1+ {[%emt 0:0:1] Weighted Error Value: White=0.52/Black=0.33.  Mistake:       	White=7     	Black=5      Inaccurate:     	---       	Black=1      OK:         	White=14    	Black=13     Best:        	White=2     	Black=3      Strong:       	White=1     	Black=4} 0-1

[Event "Biel Festival Masters Blitz 2024"]
[White "Martirosyan,Haik M."]
[Black "Praggnanandhaa R"]
[Site "Biel"]
[Round "8.3"]
[Annotator "TA"]
[Result "1-0"]
[Date "2024.07.21"]
[WhiteElo "2662"]
[BlackElo "2747"]
[PlyCount "65"]
[TimeControl "180+2"]

{[%evp 9,65,14,15,27,17,12,16,18,32,15,16,24,19,0,0,-31,-5,-29,-22,-83,0,0,0,-10,-3,-7,-8,0,58,39,102,98,197,125,226,91,97,70,64,52,94,83,100,0,0,0,390,189,591,606,613,610,591,549,666,679,726,719]} 1. d4 {[%emt 0:0:1]} Nf6 {[%emt 0:0:0]} 2. c4 {[%emt 0:0:0]} e6 {[%emt 0:0:1]} 3. Nf3 {[%emt 0:0:1]} Nc6 {[%emt 0:0:3]} 4. g3 {[%emt 0:0:5]} Bb4+ {[%emt 0:0:1]} 5. Bd2 {[%emt 0:0:1]} Bxd2+ {[%emt 0:0:1]} 6. Qxd2 {[%emt 0:0:3]} Qe7 {[%emt 0:0:1]} 7. Nc3 {[%emt 0:0:2]} d5 {[%emt 0:0:0]} 8. Bg2 {[%emt 0:0:3] The position is equal.} dxc4 {[%emt 0:0:2]} 9. Ne5 {[%emt 0:0:3]} Nxe5 {[%emt 0:0:1]} 10. dxe5 {[%emt 0:0:1]} Nd7 {[%emt 0:0:1]} 11. f4 {[%emt 0:0:12][%mdl 1024] White has compensation.} O-O {[%emt 0:0:3]} 12. O-O {[%emt 0:0:14]} Rb8 {[%emt 0:0:4]} 13. Rfd1 {[%emt 0:0:11]} b5 {[%emt 0:0:12]} 14. a4 {[%emt 0:0:3] [#]} (14. Qd4 $11 {keeps the balance.} )a6 {[%emt 0:0:33]} ({Black should try} 14... Nc5 $1 $17 {[%cal Rc5b3] Strongly threatening ...Nb3.} 15. Qd4 (15. Nxb5 $2 Nb3 $19 )b4 )15. axb5 $11 {[%emt 0:0:2]} axb5 {[%emt 0:0:1]} 16. Ra7 {[%emt 0:0:36]} Nc5 $1 {[%emt 0:0:12]} 17. Qe3 {[%emt 0:0:13][%cal Of4f5]} b4 {[%emt 0:1:1]} 18. Ne4 {[%emt 0:0:2]} Nxe4 {[%emt 0:0:1]} (18... Nb3 $1 $11 )19. Bxe4 $14 {[%emt 0:0:1]} Rb5 {[%emt 0:0:15]} (19... f5 $14 20. exf6 gxf6 )20. Rc1 $36 {[%emt 0:0:16][%mdl 2048] White has strong initiative. White is much more active.} c3 {[%emt 0:0:36] [#]} 21. bxc3 {[%emt 0:0:2]} (21. Bxh7+ $1 $18 Kh8 (21... Kxh7 $2 22. Qd3+ Kg8 23. Qxb5 $18 )22. Bd3 (22. bxc3 g6 $11 ))b3 {[%emt 0:0:0]} (21... Rc5 $16 )22. c4 {[%emt 0:0:27]} (22. Bxh7+ $1 $18 {is the precise move to win.} Kh8 23. Bd3 )Rb8 {[%emt 0:0:2]} 23. Rb1 {[%emt 0:0:5][%cal Oc4c5]} Qb4 $1 {[%emt 0:0:7]} 24. Rxc7 {[%emt 0:0:3]} Ba6 {[%emt 0:0:0]} 25. Bd3 {[%emt 0:0:7]} b2 {[%emt 0:0:8]} 26. f5 {[%emt 0:0:1]} (26. Qc5 $16 )exf5 $1 $11 {[%emt 0:0:21]} 27. e6 {[%emt 0:0:0]} Qc3 $2 {[%emt 0:0:1][%mdl 8192]} (27... Qd6 $11 {and Black has nothing to worry.} 28. Rd7 (28. exf7+ Rxf7 29. Rxf7 Kxf7 $11 )Qxe6 29. Qxe6 fxe6 )28. Rxf7 {[%emt 0:0:12]} (28. exf7+ $142 Kh8 29. Rc6 )Rxf7 $2 {[%emt 0:0:2]} (28... Bxc4 $2 {too greedy.} 29. Rxf8+ (29. Rxf5 $2 {loses.} Rxf5 30. e7 Bf7 $19 )Rxf8 30. Qc5 $18 )(28... Rfc8 )29. exf7+ $18 {[%emt 0:0:0] White is clearly winning.} Kxf7 {[%emt 0:0:1]} 30. Qa7+ {[%emt 0:0:1]} Rb7 {[%emt 0:0:4]} 31. Qxa6 {[%emt 0:0:1]} Qd4+ {[%emt 0:0:3]} 32. Kg2 {[%emt 0:0:2]} Ra7 {[%emt 0:0:2]} 33. Qb5 {[%emt 0:0:3] Weighted Error Value: White=0.42/Black=0.68.  Loses game:     	---       	Black=1      Mistake:       	White=5     	Black=6      Inaccurate:     	White=1     	Black=1      OK:         	White=7     	Black=8      Best:        	White=1     	---        Strong:       	---       	Black=3} 1-0

[Event "Biel Festival Masters Blitz 2024"]
[White "Martirosyan,Haik M."]
[Black "Mishra,Abhimanyu"]
[Site "Biel"]
[Round "9.1"]
[Annotator "TA"]
[Result "1/2-1/2"]
[Date "2024.07.21"]
[WhiteElo "2662"]
[BlackElo "2627"]
[PlyCount "121"]
[TimeControl "180+2"]

{[%evp 47,120,0,0,0,0,-85,-69,-63,-74,-564,-545,-559,-552,-559,-559,-551,-543,-556,-589,-816,-812,-854,-859,-852,-835,-772,0,-769,-147,-147,-147,-147,-147,-148,0,0,0,0,0,-141,0,0,227,0,29971,417,29976,29977,29989,29975,29975,29973,29973,29975,29974,29975,29978,29978,29978,29974,29986,29970,29997,29998,29998,4694,1260,52,1270,1152,728,0,959,0,0]} 1. d4 {[%emt 0:0:1]} d5 {[%emt 0:0:0]} 2. c4 {[%emt 0:0:0]} c6 {[%emt 0:0:1]} 3. Nf3 {[%emt 0:0:1]} Nf6 {[%emt 0:0:1]} 4. Nc3 {[%emt 0:0:1]} e6 {[%emt 0:0:0]} 5. Bg5 {[%emt 0:0:1]} dxc4 {[%emt 0:0:1]} 6. e4 {[%emt 0:0:1]} b5 {[%emt 0:0:1]} 7. e5 {[%emt 0:0:1]} h6 {[%emt 0:0:1]} 8. Bh4 {[%emt 0:0:1]} g5 {[%emt 0:0:0]} 9. Nxg5 {[%emt 0:0:1]} hxg5 {[%emt 0:0:1]} 10. Bxg5 {[%emt 0:0:1]} Be7 {[%emt 0:0:2]} 11. exf6 {[%emt 0:0:1]} Bxf6 {[%emt 0:0:1]} 12. Be3 {[%emt 0:0:2]} Bb7 {[%emt 0:0:16] D44: Semi-Slav: Botvinnik System.} 13. Qf3 {[%emt 0:0:5]} Nd7 {[%emt 0:0:18]} 14. O-O-O {[%emt 0:0:9]} Be7 $146 {[%emt 0:0:1]} ({Predecessor:} 14... Qa5 15. Ne4 Be7 16. Kb1 Rh7 17. Bg5 f5 18. Bxe7 fxe4 19. Qa3 Qxa3 20. Bxa3 Rf7 {½-½ Frey Beckman,K (2700)-Pinkovetsky,S (2654) Champion's League 0406/A2 bd01 email 2004} )15. h4 {[%emt 0:0:10]} Qa5 {[%emt 0:0:49]} 16. Kb1 {[%emt 0:0:19]} Rd8 {[%emt 0:0:4]} 17. h5 {[%emt 0:0:14]} b4 {[%emt 0:0:45]} 18. Ne4 {[%emt 0:0:2]} b3 {[%emt 0:0:2]} 19. a3 {[%emt 0:0:29]} c3 {[%emt 0:0:12]} 20. Nxc3 {[%emt 0:0:6]} Bxa3 {[%emt 0:0:2]} 21. Bc4 {[%emt 0:0:17]} Bb4 {[%emt 0:0:3]} 22. Bxb3 {[%emt 0:0:8]} Bxc3 {[%emt 0:0:2]} 23. bxc3 {[%emt 0:0:2]} c5 {[%emt 0:0:19]} 24. Qxb7 {[%emt 0:0:14]} Rb8 {[%emt 0:0:0]} (24... Qxc3 $2 25. dxc5 O-O 26. Bd4 (26. Rxd7 Rxd7 27. Qb5 Rd3 $18 )Nxc5 27. Bxc3 $18 )25. Qxb8+ {[%emt 0:0:3]} Nxb8 {[%emt 0:0:1]} 26. dxc5 {[%emt 0:0:5]} (26. Kc2 $1 $11 {keeps the balance.} )Qxc3 $17 {[%emt 0:0:14]} 27. Ba4+ {[%emt 0:0:17]} Ke7 {[%emt 0:0:3]} 28. Rh4 $2 {[%emt 0:0:1][%mdl 8192]} (28. Bd4 $17 {is more resistant.} Qb4+ 29. Bb2 )Nc6 $1 $19 {[%emt 0:0:10]} (28... Rc8 29. Rc1 Qd3+ 30. Ka2 $11 )29. Ka2 {[%emt 0:0:25]} Rb8 $1 {[%emt 0:0:9]} (29... Nb4+ 30. Rxb4 Qxb4 31. Rd4 $17 )30. Rb1 {[%emt 0:0:5]} Nb4+ {[%emt 0:0:4]} 31. Rhxb4 {[%emt 0:0:1]} Rxb4 {[%emt 0:0:1]} 32. Rxb4 {[%emt 0:0:5]} Qxb4 {[%emt 0:0:1]} 33. Bb3 {[%emt 0:0:4]} a5 {[%emt 0:0:4]} 34. h6 {[%emt 0:0:3]} a4 {[%emt 0:0:0]} 35. Bd1 {[%emt 0:0:5]} Qc4+ {[%emt 0:0:9]} 36. Kb2 {[%emt 0:0:4]} Qb4+ {[%emt 0:0:5]} 37. Ka2 {[%emt 0:0:1]} f5 $2 {[%emt 0:0:7]} (37... Kf8 $19 {has better winning chances.} 38. c6 Qc4+ 39. Ka3 Qxc6 (39... Qd3+ $2 40. Kxa4 Qxd1+ 41. Ka5 $19 ))38. h7 $17 {[%emt 0:0:7]} Qc4+ $1 {[%emt 0:0:3]} 39. Ka3 {[%emt 0:0:9]} Qc3+ $1 {[%emt 0:0:1]} 40. Kxa4 {[%emt 0:0:1] [#]} Qh8 {[%emt 0:0:1]} (40... f4 $1 $17 41. Bxf4 Qc4+ 42. Ka3 (42. Ka5 Qxc5+ 43. Ka4 Qd4+ 44. Ka5 Kf7 $17 )Qxc5+ 43. Ka2 Qxf2+ 44. Kb1 Qb6+ (44... Qxf4 45. h8=Q $14 )45. Ka2 Qa5+ 46. Kb2 Qb6+ (46... Qb5+ 47. Ka1 $17 )47. Ka2 Qd4 )41. c6 $1 $11 {[%emt 0:0:7]} Kd6 {[%emt 0:0:2]} 42. Bf3 $1 {[%emt 0:0:4]} Qxh7 {[%emt 0:0:1]} (42... e5 $5 43. Kb5 $8 Qxh7 44. Bc5+ Kc7 45. Bb6+ Kc8 $11 )43. Kb5 {[%emt 0:0:2]} (43. Bb6 $1 $11 )e5 {[%emt 0:0:3]} (43... Qg8 $17 {Hoping for ...e5.} 44. Bb6 e5 )44. Bc5+ $11 {[%emt 0:0:1]} Ke6 $2 {[%emt 0:0:1] [#]} (44... Kc7 $11 {and Black is okay.} 45. Bb6+ Kc8 )45. Be2 $2 {[%emt 0:0:4]} ({Only move:} 45. Kb6 $1 $18 {Threatening mate with c7.} e4 46. Bd1 )Qh1 $2 {[%emt 0:0:2][%mdl 8192]} (45... Qc7 $11 )46. Bc4+ {[%emt 0:0:1]} Kf6 {[%emt 0:0:2]} 47. c7 {[%emt 0:0:2]} Qb1+ {[%emt 0:0:3]} 48. Kc6 {[%emt 0:0:2]} Qe4+ {[%emt 0:0:1]} 49. Kb6 {[%emt 0:0:7]} Qxc4 {[%emt 0:0:6]} 50. c8=Q {[%emt 0:0:1]} (50. c8=R $2 {loses.} Qb3+ 51. Kc7 Qd5 52. Rf8+ Kg6 $19 )Qb3+ {[%emt 0:0:1]} 51. Kc7 {[%emt 0:0:3]} Kg5 {[%emt 0:0:3]} 52. Qd8+ {[%emt 0:0:4]} Kg4 {[%emt 0:0:1]} 53. Qd2 {[%emt 0:0:3]} f4 {[%emt 0:0:4]} 54. f3+ {[%emt 0:0:1]} Kg3 {[%emt 0:0:1]} 55. Qf2+ {[%emt 0:0:2]} Kh2 {[%emt 0:0:1]} 56. g4+ {[%emt 0:0:2]} (56. Qg1+ $142 Kg3 57. Bf2# )Kh3 $18 {[%emt 0:0:4]} 57. Kd6 $2 {[%emt 0:0:3]} (57. Qf1+ $18 Kh4 58. Qe1+ Kh3 59. Qxe5 Qf7+ 60. Kc6 Qg6+ 61. Bd6 Qc2+ 62. Kd7 )Qf7 $2 {[%emt 0:0:2][%mdl 8192]} (57... Qd3+ $14 58. Ke6 (58. Kxe5 Qd6+ 59. Kf5 Qf8+ 60. Kg6 Qf5+ 61. Kg7 Qf8+ 62. Kxf8 $11 )Qg6+ 59. Kd7 (59. Kxe5 Qf5+ 60. Kd6 Qd7+ 61. Ke5 Qf5+ 62. Kd6 Qd7+ 63. Ke5 Qf5+ $11 )e4 60. Qf1+ Kg3 61. fxe4 (61. Qf2+ Kh3 $16 )Qxe4 )58. Qf1+ {[%emt 0:0:1]} ({And not} 58. Kxe5 Qf5+ 59. Kd6 Qd7+ 60. Ke5 Qf5+ 61. Kd6 Qd7+ 62. Ke5 Qf5+ $11 )Kg3 {[%emt 0:0:1]} 59. Qf2+ {[%emt 0:0:2]} Kh3 {[%emt 0:0:1]} 60. Kxe5 $2 {[%emt 0:0:2]} (60. Qc2 $18 Qf6+ 61. Kd5 )Qd5+ $11 {[%emt 0:0:1]} 61. Kxd5 {[%emt 0:0:4]} 1/2-1/2

[Event "Biel Festival Masters Blitz 2024"]
[White "Praggnanandhaa R"]
[Black "Keymer,Vincent"]
[Site "Biel"]
[Round "9.2"]
[Annotator "TA"]
[Result "1-0"]
[Date "2024.07.21"]
[WhiteElo "2747"]
[BlackElo "2721"]
[PlyCount "57"]
[TimeControl "180+2"]

{[%evp 9,56,-15,-5,0,8,0,0,7,18,25,21,8,10,14,28,20,34,0,27,0,14,10,17,11,12,0,15,15,11,16,14,0,0,0,0,-137,-131,-227,662,654,656,644,649,636,662,659,741,609,29999]} 1. d4 {[%emt 0:0:1]} Nf6 {[%emt 0:0:1]} 2. Bg5 {[%emt 0:0:1]} d5 {[%emt 0:0:1]} 3. e3 {[%emt 0:0:1]} c5 {[%emt 0:0:4]} 4. Bxf6 {[%emt 0:0:2]} gxf6 {[%emt 0:0:1]} 5. dxc5 {[%emt 0:0:1]} e6 {[%emt 0:0:8]} 6. Nf3 {[%emt 0:0:2]} Nc6 {[%emt 0:0:2]} 7. Be2 {[%emt 0:0:3]} Bxc5 {[%emt 0:0:5]} 8. O-O {[%emt 0:0:2] The position is equal.} Be7 {[%emt 0:0:10]} 9. c4 {[%emt 0:0:1]} dxc4 {[%emt 0:0:5]} 10. Qa4 {[%emt 0:0:1]} O-O {[%emt 0:0:7]} 11. Qxc4 {[%emt 0:0:2]} f5 {[%emt 0:0:2]} 12. Nc3 {[%emt 0:0:3]} Bf6 {[%emt 0:0:2]} 13. Rac1 {[%emt 0:0:10]} Bd7 {[%emt 0:0:4]} 14. Qf4 {[%emt 0:0:12]} Qe7 {[%emt 0:0:17]} 15. e4 {[%emt 0:0:47]} Bxc3 {[%emt 0:0:16]} 16. Rxc3 {[%emt 0:0:6] Black should prevent Rd1.} e5 {[%emt 0:0:4]} 17. Qh6 {[%emt 0:0:32] aiming for Rd1.} (17. Qg3+ {simplifies} Kh8 18. exf5 Bxf5 19. Bb5 )fxe4 {[%emt 0:0:19]} 18. Ng5 {[%emt 0:0:38][%csl Gg5][%cal Rh6h7]} f6 $1 {[%emt 0:0:1]} 19. Nxe4 {[%emt 0:0:3]} Nd4 {[%emt 0:0:8]} 20. Bd3 $36 {[%emt 0:0:7][%mdl 2048] Black is under pressure.} Bc6 {[%emt 0:0:49] ...Bxe4 would now be deadly.} 21. Ng3 {[%emt 0:0:16]} f5 {[%emt 0:0:9]} 22. Nh5 {[%emt 0:0:27]} (22. Ne2 $11 {keeps the balance.} )Kh8 $17 {[%emt 0:0:3]} 23. Bc4 {[%emt 0:0:2]} (23. Re1 $17 )b5 $4 {[%emt 0:0:16][%mdl 8192] [#]} (23... f4 $19 24. Re1 Rad8 )24. Rg3 $1 $18 {[%emt 0:0:1]} Rg8 {[%emt 0:0:31] Dodges Rg7} 25. Rxg8+ {[%emt 0:0:3]} Rxg8 {[%emt 0:0:1]} 26. Bxg8 {[%emt 0:0:1]} Kxg8 {[%emt 0:0:1]} 27. Re1 {[%emt 0:0:2]} Qf7 {[%emt 0:0:5]} 28. Rxe5 {[%emt 0:0:4] Qg5+ would kill now.} Qc4 {[%emt 0:0:2]} 29. Qg7# {[%emt 0:0:1] Weighted Error Value: White=0.27 (precise) /Black=0.56.  Missed win:     	---       	Black=1      Mistake:       	White=2     	---        Inaccurate:     	White=2     	Black=1      OK:         	White=6     	Black=9      Best:        	---       	Black=1      Strong:       	White=1     	Black=1} 1-0

[Event "Biel Festival Masters Blitz 2024"]
[White "Shankland,Sam"]
[Black "Le,Quang Liem"]
[Site "Biel"]
[Round "9.3"]
[Annotator "TA"]
[Result "1/2-1/2"]
[Date "2024.07.21"]
[WhiteElo "2683"]
[BlackElo "2731"]
[PlyCount "73"]
[TimeControl "180+2"]

{[%evp 9,73,32,19,22,14,15,14,10,0,16,3,18,11,25,27,-13,0,0,0,-23,-21,-20,-18,-82,-2,-7,-11,-15,-7,-15,0,0,0,-18,0,0,0,-43,16,30,22,15,24,22,20,22,20,11,11,11,15,15,15,15,15,15,16,14,14,14,14,0,14,0,0,0]} 1. d4 {[%emt 0:0:0]} Nf6 {[%emt 0:0:1]} 2. c4 {[%emt 0:0:1]} e6 {[%emt 0:0:1]} 3. Nc3 {[%emt 0:0:1]} d5 {[%emt 0:0:1]} 4. Bg5 {[%emt 0:0:2]} dxc4 {[%emt 0:0:6]} 5. e3 {[%emt 0:0:3]} c5 {[%emt 0:0:3]} 6. Bxf6 {[%emt 0:0:10]} Qxf6 {[%emt 0:0:6]} 7. d5 {[%emt 0:0:0]} g6 {[%emt 0:0:11]} 8. Bxc4 {[%emt 0:0:3] Mit der Idee Qa4+.} Bg7 {[%emt 0:0:1]} 9. Qa4+ {[%emt 0:0:3]} Nd7 {[%emt 0:0:7]} 10. dxe6 {[%emt 0:0:6]} fxe6 {[%emt 0:0:2]} 11. Nf3 {[%emt 0:0:5] [#] Rd1 ist eine echte Drohung.} O-O {[%emt 0:0:3]} 12. O-O {[%emt 0:0:38]} Nb6 {[%emt 0:0:1]} 13. Qb5 {[%emt 0:0:1]} Qe7 {[%emt 0:0:10]} 14. Bb3 {[%emt 0:0:19]} Bd7 {[%emt 0:0:4]} 15. Qe2 {[%emt 0:0:2]} Bc6 {[%emt 0:0:12]} 16. Rfd1 {[%emt 0:0:4] Verhindert Nd5} (16. Nd2 $11 )Rad8 {[%emt 0:0:11]} (16... c4 $17 {Droht stark ...Rxf3.} 17. Bc2 Bxf3 18. gxf3 Qg5+ 19. Kh1 Qh5 )17. Rxd8 $11 {[%emt 0:0:27]} Rxd8 {[%emt 0:0:2]} 18. Rd1 {[%emt 0:0:1]} Rxd1+ {[%emt 0:0:19]} 19. Qxd1 {[%emt 0:0:1]} c4 {[%emt 0:0:2]} 20. Bc2 {[%emt 0:0:1]} Nd5 {[%emt 0:0:2]} 21. Nxd5 {[%emt 0:0:14]} Bxd5 {[%emt 0:0:1] Das Läuferpaar ist gut.} 22. b3 {[%emt 0:0:15]} c3 {[%emt 0:0:9]} 23. Qd3 {[%emt 0:0:18]} (23. e4 $5 Bc6 $8 24. h4 $11 )Bf6 {[%emt 0:0:25]} (23... Qa3 $15 )24. e4 {[%emt 0:0:5]} Bc6 {[%emt 0:0:2]} 25. e5 {[%emt 0:0:6]} Bg7 {[%emt 0:0:3]} 26. Qxc3 {[%emt 0:0:2]} Bxf3 {[%emt 0:0:2] Die Stellung ist ausgeglichen.} 27. Qxf3 {[%emt 0:0:4]} Bxe5 {[%emt 0:0:3][%mdl 4096] Endspiel. KQB-KQB} 28. g3 {[%emt 0:0:0]} Bd4 {[%emt 0:0:5]} 29. Kg2 {[%emt 0:0:5]} Qf7 {[%emt 0:0:5]} 30. Qe2 {[%emt 0:0:1]} e5 {[%emt 0:0:1]} 31. h4 {[%emt 0:0:3]} Kg7 {[%emt 0:0:2]} 32. Be4 {[%emt 0:0:4]} b6 {[%emt 0:0:2]} 33. Qd2 {[%emt 0:0:5]} Qf6 {[%emt 0:0:4]} 34. Qc2 {[%emt 0:0:5]} Bc5 {[%emt 0:0:4]} 35. Qd2 {[%emt 0:0:9]} a5 {[%emt 0:0:4]} 36. f3 {[%emt 0:0:7]} Qd6 {[%emt 0:0:2]} 37. Qxd6 {[%emt 0:0:25] Gewichteter Fehlerwert: Weiß=0.10 (sehr präzise) /Schwarz=0.09 (makellos) .  Fehler:       	Weiß=1     	Schwarz=2     Ungenau:       	Weiß=2     	---        OK:         	Weiß=14    	Schwarz=14    Bester:       	---       	Schwarz=1} 1/2-1/2